Cogmind - Beta 17.1 @@@ ROGUE MODE // 2026.08.27 @ 20:03:38 Player: wmss Result: Destroyed by 97-ZOY(R) with Subdweller Laser Performance ------------- Evolutions (0) 0 Regions Visited (2) 400 Robots Destroyed (1) 5 Value Destroyed (40) 40 Prototype IDs (0) 0 Alien Tech Used (0) 0 Bonus (0) 0 TOTAL SCORE: 445 Bonus ------- None Cogmind --------- Core Integrity 0/250 Matter 289/300 Energy 99/100 System Corruption 0% Temperature Cool (6) Movement Core (50) Location -10/Subcaves Parts ------- > --- POWER (1) -------- (None) > --- PROPULSION (2) --- (None) > --- UTILITY (2) ------ (None) > --- WEAPON (2) ------- (None) > --- INVENTORY (5) ---- Subdweller Power Source Aluminum Leg Aluminum Leg Wheel Subdweller Monowheel Peak State ------------ > --- POWER ------------ Light Ion Engine > --- PROPULSION ------- Aluminum Leg Aluminum Leg > --- UTILITY ---------- Small Storage Unit Subdweller Optics > --- WEAPON ----------- Medium Laser Barrage Gun > --- INVENTORY -------- Ion Engine Subdweller Power Source Aluminum Leg Aluminum Leg Wheel Subdweller Monowheel Salvaging Laser Subdweller Machine Gun [Rating: 11] Favorites ----------- Power Light Ion Engine Engine Light Ion Engine Propulsion Aluminum Leg Leg Aluminum Leg Utility Small Storage Unit Device Subdweller Optics Storage Small Storage Unit Weapon Medium Laser Energy Gun Medium Laser Ballistic Gun Light Assault Rifle Build | -11 -10 -10 ------- Run | Yrd Mat Sub Slots Evolved . | . . . Power . | . . . Propulsion . | . . . Utility . | . . . Weapon . | . . . Parts Attached 12 | 7 . 5 Power 2 | 1 . 1 Engine 2 | 1 . 1 Core . | . . . Reactor . | . . . Propulsion 2 | 2 . . Treads . | . . . Leg 2 | 2 . . Wheel . | . . . Hover . | . . . Flight . | . . . Utility 2 | 1 . 1 Device 1 | . . 1 Storage 1 | 1 . . Processor . | . . . Hackware . | . . . Protection . | . . . Artifact . | . . . Weapon 6 | 3 . 3 Energy Gun 3 | 2 . 1 Energy Cannon . | . . . Ballistic Gun 3 | 1 . 2 Ballistic Cannon . | . . . Launcher . | . . . Special Weapon . | . . . Impact Weapon . | . . . Slashing Weapon . | . . . Piercing Weapon . | . . . Special Melee Weapon . | . . . Unidentified Prototypes . | . . . Parts Lost 7 | . . 7 Power 2 | . . 2 Propulsion 2 | . . 2 Utility . | . . . Weapon 3 | . . 3 Highest Loss Streak 7 | . . 7 To Critical Strikes . | . . . Average Backups 5 | 3 5 7 Power 1 | . 1 1 Propulsion 2 | 1 2 4 Utility . | . . . Weapon 1 | . 1 1 Tool/Special . | . . . Unused Backups 7 | . . 7 Power 2 | . . 2 Propulsion 5 | . . 5 Utility . | . . . Weapon . | . . . Tool/Special . | . . . Average Slot Usage (%) 85 | . 85 85 Engine 13 | . 14 13 Leg 26 | . 28 26 Device 3 | . . 4 Storage 13 | . 14 13 Energy Gun 13 | . 14 13 Ballistic Gun 13 | . 14 12 Peak Build Rating 11 | 6 6 11 Average Rating 6 | 5 6 8 On Entrance 4 | . 6 6 Avg Prop Armor Cover (%) . | . . . Naked Turns 22 | . . 22 Heaviest Build 13 | 11 11 13 Greatest Support 20 | 20 20 20 Greatest Overweight (x) . | . . . Average Overweight (x) . | . . . Largest Inventory Capacity 8 | 8 8 8 Average Capacity 7 | 7 8 7 Most Carried 8 | 4 8 8 Average Carried 5 | 3 5 7 Final Capacity 8 | 8 8 5 Final Carried 8 | 4 8 5 Class Distribution -------------------- 100% | Mutant Dominant Class ---------------- Mutant | -10/Materials Mutant | -10/Subcaves Resources | -11 -10 -10 ----------- Run | Yrd Mat Sub Matter Collected 314 | 192 78 44 Remotely . | . . . Salvage Created 30 | . . 30 Parts 2 | . . 2 Haulers Intercepted . | . . . Recyclers Shooed . | . . . Parts Field Recycled . | . . . Retrieved Matter . | . . . Parts Self-Destructed 4 | . . 4 Prevented . | . . . Parts Restored . | . . . Kills | -11 -10 -10 ------- Run | Yrd Mat Sub Combat Hostiles Destroyed 1 | . . 1 Guns 1 | . . 1 Classes Destroyed 1 | . . 1 Subdweller 1 | . . 1 Best Kill Streak 1 | . . 1 Combat Bots Only 1 | . . 1 Max Kills in Single Turn 1 | . . 1 Gunslinging . | . . . Exploded . | . . . Melee . | . . . Uniques/NPCs Destroyed . | . . . Combat | -11 -10 -10 -------- Run | Yrd Mat Sub Hostile Shots Fired 79 | . 1 78 Missed 28 | . 1 27 Hits 51 | . . 51 Projectile 51 | . . 51 Critical Strikes 5 | . . 5 Damage Taken 1021 | . . 1021 Core 269 | . . 269 Absorbed by Shields . | . . . Core Remaining (%) 100 | 100 . . Volleys Fired 15 | . . 15 Largest 2 | . . 2 Hottest 80 | . . 80 Shots Fired 25 | . . 25 Gun 25 | . . 25 Cannon . | . . . Launcher . | . . . Special . | . . . Kinetic 14 | . . 14 Thermal 11 | . . 11 Explosive . | . . . Electromagnetic . | . . . Robot Hit Streak 14 | . . 14 Robot Miss Streak 2 | . . 2 Penetration Max . | . . . Secondary Targets . | . . . Shots Hit Robots 20 | . . 20 Core Hits 2 | . . 2 Critical Kills . | . . . Critical Parts Destroyed . | . . . Critical Strikes . | . . . Melee Attacks . | . . . Impact . | . . . Slashing . | . . . Piercing . | . . . Sneak Attacks . | . . . Combat Hostiles . | . . . Follow-up Attacks . | . . . Damage Inflicted 270 | . . 270 Guns 270 | . . 270 Cannons . | . . . Explosions . | . . . Melee . | . . . Ramming . | . . . Kinetic 162 | . . 162 Thermal 108 | . . 108 Explosive . | . . . Electromagnetic . | . . . Impact . | . . . Slashing . | . . . Piercing . | . . . Highest Corruption . | . . . Average Corruption . | . . . Corruption Purged . | . . . Corruption Blocked . | . . . Overload Shots . | . . . Overflow Damage . | . . . Projectiles . | . . . Explosions . | . . . Melee . | . . . Knockbacks . | . . . Impact . | . . . Kinetic . | . . . Secondary . | . . . Self-Inflicted Damage . | . . . Shots . | . . . Rammed . | . . . Targets Rammed . | . . . Kicked . | . . . Crushed . | . . . Highest Temperature 9 | . . 9 Average Temperature 5 | . . 5 Received Heat Transfer 210 | . . 210 Siege Activations . | . . . Martial Activations . | . . . Shielding Activations . | . . . Robots Disrupted . | . . . Combat Hostiles . | . . . Robots Corrupted . | . . . Combat Hostiles . | . . . Parts Fried . | . . . Impact Corruptions . | . . . Robots Melted . | . . . Combat Hostiles . | . . . Parts Melted . | . . . Heat Transferred 321 | . . 321 Parts Sabotaged . | . . . Parts Stolen . | . . . Parts Stripped . | . . . Power Chain Reactions . | . . . Alert | -11 -10 -10 ------- Run | Yrd Mat Sub Maximum Alert Level . | . . . Low Security (%) 100 | 100 100 . Level 1 . | . . . Level 2 . | . . . Level 3 . | . . . Level 4 . | . . . Level 5 . | . . . High Security . | . . . Max Security . | . . . Peak Influence 6 | . 6 . Initial . | . . . Average . | . . . Influence Increases 6 | . 6 . Successful Hack 6 | . 6 . Influence Decreases 6 | . 6 . Time Decay 6 | . 6 . Squads Dispatched . | . . . Investigation . | . . . Extermination . | . . . Reinforcement . | . . . Assault . | . . . Garrison . | . . . Intercept . | . . . Searches Triggered . | . . . Construction Impeded . | . . . Haulers Reinforced . | . . . Active Scanning Responses . | . . . Cargo Convoy Interrupts . | . . . Stealth | -11 -10 -10 --------- Run | Yrd Mat Sub Distress Signals 1 | . 1 . Communications Jammed . | . . . Distress Signals . | . . . Times Spotted 18 | . 7 11 Peak Tracking Total 7 | . 3 7 Tactical Retreats . | . . . Traps | -11 -10 -10 ------- Run | Yrd Mat Sub Traps Triggered . | . . . Indirectly . | . . . Trap Hack Attempts . | . . . Triggered . | . . . Disarmed . | . . . Reprogrammed . | . . . Reused . | . . . Traps Extracted . | . . . Installed . | . . . Triggered . | . . . Machines | -11 -10 -10 ---------- Run | Yrd Mat Sub Machines Disabled . | . . . Max in Single Turn . | . . . Machines Repaired . | . . . Machines Dismantled . | . . . Machines Sabotaged . | . . . Overloaded Fab Kills . | . . . Hacking | -11 -10 -10 --------- Run | Yrd Mat Sub Machines Accessed 1 | . 1 . Terminals 1 | . 1 . Fabricators . | . . . Repair Stations . | . . . Recycling Units . | . . . Scanalyzers . | . . . Garrison Access . | . . . Total Hacks 2 | . 2 . Successful 1 | . 1 . Failed 1 | . 1 . Catastrophic . | . . . Database Lockouts . | . . . Manual 2 | . 2 . Terminals 2 | . 2 . Fabricators . | . . . Repair Stations . | . . . Recycling Units . | . . . Scanalyzers . | . . . Garrison Access . | . . . Terminal Hacks 1 | . 1 . Zone Layout 1 | . 1 . Fabricator Hacks . | . . . Repair Station Hacks . | . . . Recycling Unit Hacks . | . . . Scanalyzer . | . . . Garrison Access Hacks . | . . . Unauthorized Hacks . | . . . Terminals . | . . . Fabricators . | . . . Repair Stations . | . . . Recycling Units . | . . . Scanalyzers . | . . . Garrison Access . | . . . Data Cores Recovered . | . . . Used . | . . . Hacking Detections . | . . . Full Trace Events . | . . . Feedback Events . | . . . Feedback Blocked . | . . . Robot Schematics Acquired . | . . . Robots Built . | . . . Authchips . | . . . Time . | . . . Total Robot Build Rating . | . . . Part Schematics Acquired . | . . . Parts Built . | . . . Authchips . | . . . Time . | . . . Total Part Build Rating . | . . . Part Studies Acquired . | . . . Parts Repaired . | . . . Time . | . . . Parts Recycled . | . . . Recycled Matter . | . . . Retrieved Matter . | . . . Retrieved Components . | . . . Parts Scanalyzed . | . . . Part Schematics Acquired . | . . . Parts Damaged . | . . . Bothacking | -11 -10 -10 ------------ Run | Yrd Mat Sub Used RIF Installer . | . . . Robots Hacked . | . . . Non-combat . | . . . Combat . | . . . Robot Hacks Applied . | . . . Relay Couplers Released . | . . . Fabnet Peak Effective % . | . . . Robots Rewired . | . . . Allies Hacked . | . . . Hacks Repelled . | . . . Allies | -11 -10 -10 -------- Run | Yrd Mat Sub Total Allies . | . . . Largest Group . | . . . Highest-Rated Group . | . . . Highest-Rated Ally . | . . . Total Orders . | . . . Ally Attacks . | . . . Total Damage . | . . . Kills . | . . . Allies Corrupted . | . . . Allies Melted . | . . . Intel | -11 -10 -10 ------- Run | Yrd Mat Sub Active Infowar (turns) 169 | . . 169 Optics 169 | . . 169 Robot Analysis Total . | . . . Derelict Logs Recovered 2 | . . 2 Drone Launches . | . . . Drone Recoveries . | . . . Exploration | -11 -10 -10 ------------- Run | Yrd Mat Sub Turns Passed 1122 | 430 157 535 Spaces Moved 740 | 256 98 386 Core 51 | 6 . 45 Treads . | . . . Legs 689 | 250 98 341 Wheels . | . . . Hover . | . . . Flight . | . . . Fastest Speed 50 | 50 120 50 Average Speed 115 | 118 120 111 Slowest Speed 120 | 120 120 120 Overloaded Moves . | . . . Propulsion Burnouts . | . . . Robots Hopped . | . . . Potential Cave-ins . | . . . Cave-ins Triggered . | . . . Exploration Rate (%) 21 | 9 18 36 Regions Visited 2 Branch Regions 1 Pre-discovered Areas 1 | . . 1 Known Exits Taken . | . . . Unknown Exits Taken 2 | 1 1 . Scrap Searched . | . . . Spaces Dug . | . . . Terrain Destroyed . | . . . Melee . | . . . Projectile . | . . . AOE . | . . . Terrain Rammed . | . . . Walls Destroyed . | . . . Machines Disabled . | . . . Actions | -11 -10 -10 --------- Run | Yrd Mat Sub Total 984 | 379 137 468 Wait 203 | 113 36 54 Move 738 | 255 97 386 Hop . | . . . Pick Up 11 | 4 4 3 Fast Attach 7 | 6 . 1 Attach 3 | . . 3 Detach . | . . . Swap 2 | 1 . 1 Drop 5 | . . 5 Fire 15 | . . 15 Melee . | . . . Ram . | . . . Kick . | . . . Crush . | . . . Escape Stasis . | . . . Rewire . | . . . Trap . | . . . Miscellaneous . | . . . Route ------- -11/Scrapyard -10/Materials -10/Subcaves (discovered 2 exits: [*Mat] / [Scr]) History --------- Turn | Location | Event 32 | -11/Scrapyard | Discovered new exit (range 15) 431 | -11/Scrapyard | Entered Materials 432 | -10/Materials | Build established: Mutant 432 | -10/Materials | Met a group of wandering Federalists 474 | -10/Materials | Discovered new exit (range 9) 588 | -10/Materials | Entered Subcaves 589 | -10/Subcaves | Continued accompanying wandering Federalists (4) 589 | -10/Subcaves | Approached by a straggling Scientist 597 | -10/Subcaves | Learned location of 1 exit from Materials 598 | -10/Subcaves | A swath of the cavern ceiling suddenly collapsed 625 | -10/Subcaves | Discovered new exit (range 14) 819 | -10/Subcaves | Shifting Twisted Machinery released Barrage Gun 1010 | -10/Subcaves | Learned location of Zion (-7) 1061 | -10/Subcaves | Ambushed by Subdwellers from Twisted Machinery 1066 | -10/Subcaves | Shifting Twisted Machinery released Spk. Treads 1068 | -10/Subcaves | A Subdweller sparked back to life 1068 | -10/Subcaves | A Subdweller sparked back to life 1068 | -10/Subcaves | A Subdweller sparked back to life 1091 | -10/Subcaves | Core integrity fell below 50% 1101 | -10/Subcaves | Released all parts (2) 1103 | -10/Subcaves | Core integrity fell below 20% 1106 | -10/Subcaves | Shifting Twisted Machinery released Spk. Treads 1123 | -10/Subcaves | Destroyed by 97-ZOY(R) with Subdweller Laser Last Messages --------------- 01010_ Acquired derelict log, extracted data. World map updated: -7/Zion. Spk. Treads falls loose from the Twisted Machinery. 01068_ J2-623(R) creaks and sparks as it begins to move. 01068_ 7I-6VX(R) creaks and sparks as it begins to move. 01068_ R1-SWJ(R) creaks and sparks as it begins to move. 01073_ Lgt. Ion Engine destroyed. 01083_ Aluminum Leg destroyed. 01089_ Barrage Gun destroyed. [Achievement: There's More Where That Came From] 01091_ Aluminum Leg destroyed. 01097_ Sub. Machine Gun destroyed. 01099_ Med. Laser destroyed. 01099_ J2-623(R) destroyed. 01101_ Ion Engine destroyed. 01101_ Released Sml. Storage Unit. 01101_ Released Salvaging Laser. [Achievement: Live, Flee, And Rebuild] 01101_ Acquired 30 matter. Spk. Treads falls loose from the Twisted Machinery. Map ----- +----------------------------------------------------+ | ?????????????????????????????????????????????????? | | ?????????????????????????????????????????????????? | | ?????????????????????????????????????????????????? | | ?????????????????????????????????????????????????? | | ?????????????????????????????????????????????????? | | ?????????????????????????????????????????????????? | | ?????????????????????????????????????????????????? | | ?????????????????????????????????????????????????? | | ?????????????????????????????????????????????????? | | ??????????????????????#??????????????????????????? | | ??????????????????????# ?????????????????????????? | | ??????????????????????? #????????????????????????? | | ???????????????????????? #####???????????????????? | | ???????????????????????? #???????????????????? | | ????????????????????????? #???????????????????? | | ????????????????????????## #???????????????????? | | ????????????????????????# #???????????????????? | | ????????????????????????## "#???????????????????? | | ???????????????????????## """#######?????????????? | | ???????????????????""?##""" ## ####??????????? | | ?????????????????# ""##" "## ###????????? | | ???????????????? # #"#" R"## ###??????? | | ???????????????? """" " R" #??????? | | ????????????????##"##"" # < #### #??????? | | ????????????????????###"&RR #??## ##??????? | | ??????????????????????##"@ R ##?# ##???????? | | ???????????????????????#" < R#?## ##???????? | | ???????????????????????# < !& ##??# #???????? | | ???????????????????????# ### =####### ##???????? | | ??????????????????????### ## [ #?# ##??????? | | ??????????????????????# # # ![ ### #??????? | | ??????????????????????# ## ## #??????? | | ????????????#####?????# ###""### #??????? | | ????????????# ""##????# ##? """?## ##??????? | | ???????????##""""#????## #?? """??## ###???????? | | ???????????#""" "#?????"" ?#"" "#??# #?????????? | | ???????????+"" "#?????#"" ?""="#???# ##?????????? | | ???????????#" """#?????#""="?"?"???## #?????????? | | ????????????#"" "#?????#"" "???""??# ##?????????? | | ???????????##" "#?????#"""" #""??## #?????????? | | ??????###### " "#????????" ?"" ??# ##?????????? | | ??????# # ""##????????# "#""#?#" #?????????? | | ??????## "#??????????###"""#### ##?????????? | | ??????# ## ##????????????#" " ### #??????????? | | ????###" "#######????????????# " # ##?????????? | | ##### " ### #???????????##"" #?????????? | | ##??????????# ##?????????? | | ### #"?????????## #??????????? | | ### # ?????????# ### #??????????? | | ##?# ##? ????????# #### #??????????? | +----------------------------------------------------+ Best States ------------- Heat Dissipation 25 Energy Generation 10 Energy Capacity 250 Matter Stores 300 Matter Capacity 300 Sight Range 21 Terrain Scan Density 10 Evasion (%) 55 Item Schematics ----------------- None Robot Schematics ------------------ None Fabricated ------------ Nothing Repaired ---------- Nothing Studied --------- None Alien Tech Used ----------------- None Achievements -------------- Live, Flee, And Rebuild Strength In Numbers There's More Where That Came From Challenges ------------ None Game ------ Seed RingRainbowDetector Manual? 0 Play Time 00:29:23 Cumulative 8.2 hours Start 2026.08.27 @ 17:42:35 End 2026.08.27 @ 20:03:38 Sessions 1 Manual Loads 0 Difficulty Rogue Special Mode None Game No. 11 Rogue 11 Adventurer 0 Explorer 0 Win Type - Total 0 Types 0/0/0/0/0/0/0/0/0/0 Lore% 4 Gallery% 12 Achievement% 6 Wizard Run 0 Options --------- Layout 0 ASCII 0 Keyboard 0 Movement Numpad Keybinds 0 Fullscreen 2 Font 20/Terminus Map View 98x62 Zoom Use 0% Tactical HUD 1 Map Filters NONE Filters NONE Steam 1 RUN: bb023caf-239d-4e4e-bd6f-72b4f6b63251